fUSD/lending_fUSD_20250204
["ID","MTS","AMOUNT","RATE_DAILY","PERIOD"]
[351658071,1738692652038,-500.0,0.0001041,2]
[351658072,1738692652048,-500.0,0.0001041,2]
[351658073,1738692652060,-498.51,0.0001041,2]
[351658074,1738692652070,-500.0,0.0001041,2]
[351658075,1738692652079,-500.0,0.0001041,2]
[351658076,1738692652089,-2301.93,0.0001041,2]
[351658077,1738692652099,-500.0,0.0001041,2]
[351658078,1738692652110,-500.0,0.0001041,2]
[351658079,1738692652123,-500.0,0.0001041,2]
[351658080,1738692652137,-500.0,0.0001041,2]
[351658081,1738692652147,-423.87,0.0001041,2]
[351658082,1738692652158,-500.0,0.0001041,2]
[351658083,1738692652168,-500.0,0.0001041,2]
[351658084,1738692652178,-500.0,0.0001041,2]
[351658085,1738692652188,-500.0,0.0001041,2]
[351658086,1738692652198,-500.0,0.0001041,2]
[351658087,1738692652208,-182.69,0.0001041,2]
[351658088,1738692652218,-500.0,0.0001041,2]
[351658089,1738692652228,-500.0,0.0001041,2]
[351658090,1738692652238,-500.0,0.0001041,2]
[351658091,1738692652248,-500.0,0.0001041,2]
[351658092,1738692652259,-500.0,0.0001041,2]
[351658093,1738692652269,-604.54,0.0001041,2]
[351658094,1738692652281,-919.24,0.0001041,2]
[351658095,1738692652291,-2414.84,0.0001041,2]
[351658096,1738692652537,-500.0,0.0001041,2]
[351658097,1738692652548,-500.0,0.0001041,2]
[351658098,1738692652561,-342.29,0.0001041,2]
[351658099,1738692652572,-209.29,0.0001041,2]
[351658100,1738692652582,-500.0,0.0001041,2]
[351658101,1738692652592,-500.0,0.0001041,2]
[351658102,1738692652602,-500.0,0.0001041,2]
[351658103,1738692652612,-500.0,0.0001041,2]
[351658104,1738692652622,-510.95,0.0001041,2]
[351658105,1738692652631,-500.0,0.0001041,2]
[351658106,1738692652642,-500.0,0.0001041,2]
[351658107,1738692652651,-500.0,0.0001041,2]
[351658108,1738692652661,-500.0,0.0001041,2]
[351658109,1738692652672,-500.0,0.0001041,2]
[351658110,1738692652682,-500.0,0.0001041,2]
[351658111,1738692652692,-500.0,0.0001041,2]
[351658112,1738692652702,-500.0,0.0001041,2]
[351658113,1738692652712,-579.13,0.0001041,2]
[351658114,1738692652722,-500.0,0.0001041,2]
[351658115,1738692652733,-500.0,0.0001041,2]
[351658116,1738692652743,-1165.38,0.0001041,2]
[351658117,1738692652753,-644.31309895,0.0001041,2]
[351658118,1738692652762,-544.29,0.0001041,2]
[351658119,1738692652771,-1016.48,0.0001041,2]
[351658120,1738692652780,-500.0,0.0001041,2]
[351658121,1738692652790,-500.0,0.0001041,2]
[351658122,1738692652801,-500.0,0.0001041,2]
[351658123,1738692652812,-936.12,0.0001041,2]
[351658124,1738692652823,-500.0,0.0001041,2]
[351658125,1738692652835,-335.3,0.0001041,2]
[351658126,1738692652844,-500.0,0.0001041,2]
[351658127,1738692652855,-762.39,0.0001041,2]
[351658128,1738692652864,-514.48,0.0001041,2]
[351658129,1738692652874,-553.86,0.0001041,2]
[351658130,1738692652884,-532.68,0.0001041,2]
[351658131,1738692652895,-500.0,0.0001041,2]
[351658132,1738692652904,-684.72,0.0001041,2]
[351658133,1738692652915,-216.15,0.0001041,2]
[351658134,1738692652924,-500.0,0.0001041,2]
[351658135,1738692652934,-292.35,0.0001041,2]
[351658136,1738692652944,-500.0,0.0001041,2]
[351658137,1738692652953,-250.37,0.0001041,2]
[351658138,1738692652963,-500.0,0.0001041,2]
[351658139,1738692652974,-500.0,0.0001041,2]
[351658140,1738692652984,-500.0,0.0001041,2]
[351658141,1738692652994,-604.42,0.0001041,2]
[351658142,1738692653004,-1107.76,0.00010436,2]
[351658143,1738692653013,-1002.96965609,0.00010486,2]
[351658144,1738692653023,-1000.0,0.00010488,2]
[351658145,1738692653032,-281.24405436,0.00010497,2]
[351658146,1738692653042,-431.43955898,0.00010538,2]
[351658147,1738692653051,-500.0,0.00010546,2]
[351658148,1738692653063,-317.1,0.00010546,2]
[351658149,1738692653072,-216.61,0.00010546,2]
[351658150,1738692653081,-595.42,0.00010546,2]
[351658151,1738692653091,-500.0,0.00010546,2]
[351658152,1738692653102,-634.496518,0.00010546,2]
[351658153,1738692653112,-500.0,0.00010546,2]
[351658154,1738692653125,-563.800411,0.00010546,2]
[351658155,1738692653135,-500.0,0.00010546,2]
[351658156,1738692653146,-500.0,0.00010546,2]
[351658157,1738692653157,-288.45,0.00010546,2]
[351658158,1738692653167,-500.0,0.00010546,2]
[351658159,1738692653177,-647.28,0.00010546,2]
[351658160,1738692653186,-500.0,0.00010546,2]
[351658161,1738692653196,-500.0,0.00010546,2]
[351658162,1738692653206,-500.0,0.00010546,2]
[351658163,1738692653216,-575.71,0.00010546,2]
[351658164,1738692653225,-173.19922133,0.00010546,2]
[351658165,1738692653460,-414.25077867,0.00010546,2]
[351658166,1738692653470,-376.30696533,0.00010546,2]
[351658167,1738692653782,-500.0,9.562e-05,2]
[351658168,1738692653792,-500.0,9.998e-05,2]
[351658169,1738692653802,-500.0,0.00010135,2]
[351658170,1738692653813,-500.0,0.00010135,2]
[351658171,1738692653823,-500.0,0.00010272,2]
[351658172,1738692653833,-164.999995,0.00010272,2]
[351658173,1738692653846,-335.000005,0.00010272,2]
[351658174,1738692653855,-500.0,0.00010409,2]
[351658175,1738692653865,-500.0,0.00010409,2]
[351658176,1738692653875,-123.69303467,0.00010546,2]
[351658177,1738692653884,-500.0,0.00010546,2]
[351658178,1738692653894,-500.0,0.00010546,2]
[351658179,1738692653903,-500.0,0.00010546,2]
[351658180,1738692653913,-500.0,0.00010546,2]
[351658181,1738692653922,-1116.97,0.00010546,2]
[351658182,1738692653931,-702.39,0.00010546,2]
[351658183,1738692653941,-1009.36,0.00010546,2]
[351658184,1738692653951,-1278.5,0.00010546,2]
[351658185,1738692653960,-500.0,0.00010546,2]
[351658186,1738692653969,-500.0,0.00010546,2]
[351658187,1738692653979,-500.0,0.00010546,2]
[351658188,1738692653988,-500.0,0.00010546,2]
[351658189,1738692653998,-500.0,0.00010546,2]
[351658190,1738692654007,-595.35,0.00010546,2]
[351658191,1738692654017,-500.0,0.00010546,2]
[351658192,1738692654026,-500.0,0.00010546,2]
[351658193,1738692654036,-500.0,0.00010546,2]
[351658194,1738692654045,-500.0,0.00010546,2]
[351658195,1738692654055,-500.0,0.00010546,2]
[351658196,1738692654067,-500.0,0.00010546,2]
[351658197,1738692654076,-565.68,0.00010546,2]
[351658198,1738692654087,-558.34,0.00010546,2]
[351658199,1738692654096,-337.35508598,0.00010546,2]
[351658200,1738692654112,-162.64491402,0.00010546,2]
[351658201,1738692654122,-500.0,0.00010546,2]
[351658202,1738692654132,-119.49776224,0.00010546,2]
[351658203,1738692654153,-1524.69223776,0.00010546,2]
[351658204,1738692654163,-500.0,0.00010546,2]
[351658205,1738692654173,-500.0,0.00010546,2]
[351658206,1738692654182,-500.0,0.00010546,2]
[351658207,1738692654192,-500.0,0.00010546,2]
[351658208,1738692654202,-820.11,0.00010546,2]
[351658209,1738692654211,-777.25,0.00010546,2]
[351658210,1738692654221,-500.0,0.00010546,2]
[351658211,1738692654230,-500.0,0.00010546,2]
[351658212,1738692654240,-592.33,0.00010546,2]
[351658213,1738692654249,-500.0,0.00010546,2]
[351658214,1738692654260,-500.0,0.00010546,2]
[351658215,1738692654270,-500.0,0.00010546,2]
[351658216,1738692654279,-1217.55,0.00010546,2]
[351658217,1738692654290,-500.0,0.00010546,2]
[351658218,1738692654299,-556.63,0.00010546,2]
[351658219,1738692654310,-635.95,0.00010546,2]
[351658220,1738692654319,-500.0,0.00010546,2]
[351658221,1738692654329,-500.0,0.00010546,2]
[351658222,1738692654339,-500.0,0.00010546,2]
[351658223,1738692654349,-166.69,0.00010546,2]
[351658224,1738692654358,-500.0,0.00010546,2]
[351658225,1738692654368,-259.85,0.00010546,2]
[351658226,1738692654378,-1100.63,0.00010546,2]
[351658227,1738692654387,-500.0,0.00010546,2]
[351658228,1738692654397,-514.24,0.00010546,2]
[351658229,1738692654406,-500.0,0.00010546,2]
[351658230,1738692654416,-500.0,0.00010546,2]
[351658231,1738692654425,-500.0,0.00010546,2]
[351658232,1738692654435,-500.0,0.00010546,2]
[351658233,1738692654444,-605.9,0.00010546,2]
[351658234,1738692654454,-500.0,0.00010546,2]
[351658235,1738692654463,-500.0,0.00010546,2]
[351658236,1738692654474,-500.0,0.00010546,2]
[351658237,1738692654483,-500.0,0.00010547,2]
[351658238,1738692654493,-500.0,0.00010547,2]
[351658239,1738692654503,-500.0,0.00010547,2]
[351658240,1738692654512,-500.0,0.00010547,2]
[351658241,1738692654522,-178.13,0.00010547,2]
[351658242,1738692654541,-500.0,0.00010547,2]
[351658243,1738692654550,-500.0,0.00010547,2]
[351658244,1738692654561,-500.0,0.00010547,2]
[351658245,1738692654570,-500.0,0.00010547,2]
[351658246,1738692654581,-500.0,0.00010547,2]
[351658247,1738692654593,-500.0,0.00010547,2]
[351658248,1738692654603,-195.82,0.00010547,2]
[351658249,1738692654614,-500.0,0.00010547,2]
[351658250,1738692654623,-500.0,0.00010547,2]
[351658251,1738692654634,-500.0,0.00010547,2]
[351658252,1738692654643,-500.0,0.00010547,2]
[351658253,1738692654655,-500.0,0.00010547,2]
[351658254,1738692654665,-500.0,0.00010547,2]
[351658255,1738692654675,-543.27,0.00010547,2]
[351658256,1738692654685,-500.0,0.00010547,2]
[351658257,1738692654694,-500.0,0.00010547,2]
[351658258,1738692654703,-636.02,0.00010547,2]
[351658259,1738692654712,-500.0,0.00010547,2]
[351658260,1738692654721,-381.14,0.00010547,2]
[351658261,1738692654730,-500.0,0.00010547,2]
[351658262,1738692654739,-503.85,0.00010547,2]
[351658263,1738692654748,-500.0,0.00010547,2]
[351658264,1738692654757,-500.0,0.00010547,2]
[351658265,1738692654766,-500.0,0.00010547,2]
[351658266,1738692654775,-500.0,0.00010547,2]
[351658267,1738692654831,-604.54,0.00010547,2]
[351658268,1738692654841,-919.24,0.00010547,2]
[351658269,1738692654851,-2414.84,0.00010547,2]
[351658270,1738692654861,-534.05,0.00010547,2]
[351658271,1738692654871,-340.22,0.00010547,2]
[351658272,1738692654882,-500.0,0.00010547,2]
[351658273,1738692654892,-402.11,0.00010547,2]
[351658274,1738692654902,-189.78,0.00010547,2]
[351658275,1738692654911,-500.0,0.00010547,2]
[351658276,1738692654921,-500.0,0.00010547,2]
[351658277,1738692654930,-500.0,0.00010547,2]
[351658278,1738692654939,-500.0,0.00010547,2]
[351658279,1738692654949,-510.77027858,0.00010547,2]
[351658280,1738692654958,-500.0,0.00010547,2]
[351658281,1738692654968,-500.0,0.00010547,2]
[351658282,1738692654977,-416.48,0.00010547,2]
[351658283,1738692654987,-500.0,0.00010547,2]
[351658284,1738692654996,-500.0,0.00010547,2]
[351658285,1738692655006,-500.0,0.00010547,2]
[351658286,1738692655015,-1165.38,0.00010547,2]
[351658287,1738692655025,-1016.48,0.00010547,2]
[351658288,1738692655034,-622.53,0.00010547,2]
[351658289,1738692655043,-500.0,0.00010547,2]
[351658290,1738692655053,-616.42,0.00010547,2]
[351658291,1738692655064,-936.12,0.00010547,2]
[351658292,1738692655074,-477.06,0.00010547,2]
[351658293,1738692655084,-500.0,0.00010547,2]
[351658294,1738692655093,-762.39,0.00010547,2]
[351658295,1738692655103,-514.48,0.00010547,2]
[351658296,1738692655113,-532.68,0.00010547,2]
[351658297,1738692655126,-500.0,0.00010547,2]
[351658298,1738692655135,-684.72,0.00010547,2]
[351658299,1738692655144,-500.0,0.00010547,2]
[351658300,1738692655154,-500.0,0.00010547,2]
[351658301,1738692655164,-354.31,0.00010547,2]
[351658302,1738692655174,-500.0,0.00010547,2]
[351658303,1738692655183,-500.0,0.00010547,2]
[351658304,1738692655193,-635.5627001,0.0001058,2]
[351658305,1738692655411,-1002.96965609,0.00010584,2]
[351658306,1738692655420,-200.32,0.00010597,2]
[351658307,1738692655431,-281.24405436,0.00010647,2]
[351658308,1738692655440,-1002.96965609,0.00010682,2]
[351658309,1738692655450,-500.0,0.00010683,2]
[351658310,1738692655459,-484.54,0.00010683,2]
[351658311,1738692655469,-634.496518,0.00010683,2]
[351658312,1738692655479,-500.0,0.00010683,2]
[351658313,1738692655488,-563.800411,0.00010683,2]
[351658314,1738692655498,-500.0,0.00010683,2]
[351658315,1738692655508,-500.0,0.00010683,2]
[351658316,1738692655518,-500.0,0.00010683,2]
[351658317,1738692655528,-500.0,0.00010683,2]
[351658318,1738692655537,-500.0,0.00010683,2]
[351658319,1738692655547,-500.0,0.00010683,2]
[351658320,1738692655557,-575.71,0.00010683,2]
[351658321,1738692655569,-587.45,0.00010683,2]
[351658322,1738692655579,-500.0,0.00010683,2]
[351658323,1738692655588,-500.0,0.00010683,2]
[351658324,1738692655598,-500.0,0.00010683,2]
[351658325,1738692655607,-500.0,0.00010683,2]
[351658326,1738692655617,-500.0,0.00010683,2]
[351658327,1738692655627,-1116.97,0.00010683,2]
[351658328,1738692655636,-702.39,0.00010683,2]
[351658329,1738692655646,-1009.36,0.00010683,2]
[351658330,1738692655657,-1278.5,0.00010683,2]
[351658331,1738692655667,-500.0,0.00010683,2]
[351658332,1738692655677,-500.0,0.00010683,2]
[351658333,1738692655687,-500.0,0.00010683,2]
[351658334,1738692655697,-642.84,0.00010683,2]
[351658335,1738692655707,-500.0,0.00010683,2]
[351658336,1738692655717,-595.35,0.00010683,2]
[351658337,1738692655727,-500.0,0.00010683,2]
[351658338,1738692655737,-500.0,0.00010683,2]
[351658339,1738692655746,-500.0,0.00010683,2]
[351658340,1738692655757,-500.0,0.00010683,2]
[351658341,1738692655767,-500.0,0.00010683,2]
[351658342,1738692655776,-500.0,0.00010683,2]
[351658343,1738692655786,-565.68,0.00010683,2]
[351658344,1738692655796,-558.34,0.00010683,2]
[351658345,1738692655806,-500.0,0.00010683,2]
[351658346,1738692655818,-500.0,0.00010683,2]
[351658347,1738692655828,-1644.19,0.00010683,2]
[351658348,1738692655838,-500.0,0.00010683,2]
[351658349,1738692655847,-500.0,0.00010683,2]
[351658350,1738692655857,-500.0,0.00010683,2]
[351658351,1738692655867,-500.0,0.00010683,2]
[351658352,1738692655877,-820.11,0.00010683,2]
[351658353,1738692655888,-777.25,0.00010683,2]
[351658354,1738692655898,-500.0,0.00010683,2]
[351658355,1738692655908,-256.46,0.00010683,2]
[351658356,1738692655918,-592.33,0.00010683,2]
[351658357,1738692655928,-500.0,0.00010683,2]
[351658358,1738692655938,-500.0,0.00010683,2]
[351658359,1738692655948,-500.0,0.00010683,2]
[351658360,1738692655959,-1217.55,0.00010683,2]
[351658361,1738692655969,-500.0,0.00010683,2]
[351658362,1738692655978,-635.95,0.00010683,2]
[351658363,1738692655988,-500.0,0.00010683,2]
[351658364,1738692655998,-500.0,0.00010683,2]
[351658365,1738692656008,-500.0,0.00010683,2]
[351658366,1738692656018,-500.0,0.00010683,2]
[351658367,1738692656027,-1100.63,0.00010683,2]
[351658368,1738692656037,-500.0,0.00010683,2]
[351658369,1738692656047,-514.24,0.00010683,2]
[351658370,1738692656056,-500.0,0.00010683,2]
[351658371,1738692656068,-500.0,0.00010683,2]
[351658372,1738692656078,-500.0,0.00010683,2]
[351658373,1738692656088,-222.74,0.00010683,2]
[351658374,1738692656097,-605.9,0.00010683,2]
[351658375,1738692656113,-500.0,0.00010683,2]
[351658376,1738692656123,-500.0,0.00010683,2]
[351658377,1738692656133,-500.0,0.00010683,2]
[351658378,1738692656143,-500.0,0.00010684,2]
[351658379,1738692656153,-500.0,0.00010684,2]
[351658380,1738692656163,-500.0,0.00010684,2]
[351658381,1738692656173,-500.0,0.00010684,2]
[351658382,1738692656186,-500.0,0.00010684,2]
[351658383,1738692656208,-500.0,0.00010684,2]
[351658384,1738692656230,-500.0,0.00010684,2]
[351658385,1738692656252,-500.0,0.00010684,2]
[351658386,1738692656274,-575.96,0.00010684,2]
[351658387,1738692656297,-500.0,0.00010684,2]
[351658388,1738692656319,-500.0,0.00010684,2]
[351658389,1738692656340,-500.0,0.00010684,2]
[351658390,1738692656362,-562.75,0.00010684,2]
[351658391,1738692656383,-500.0,0.00010684,2]
[351658392,1738692656404,-2301.93,0.00010684,2]
[351658393,1738692656426,-500.0,0.00010684,2]
[351658394,1738692656450,-542.41,0.00010684,2]
[351658395,1738692656471,-500.0,0.00010684,2]
[351658396,1738692656484,-500.0,0.00010684,2]
[351658397,1738692656494,-500.0,0.00010684,2]
[351658398,1738692656504,-500.0,0.00010684,2]
[351658399,1738692656514,-500.0,0.00010684,2]
[351658400,1738692656524,-500.0,0.00010684,2]
[351658401,1738692656534,-500.0,0.00010684,2]
[351658402,1738692656543,-500.0,0.00010684,2]
[351658403,1738692656553,-604.54,0.00010684,2]
[351658404,1738692656563,-919.24,0.00010684,2]
[351658405,1738692656585,-2414.84,0.00010684,2]
[351658406,1738692656607,-500.0,0.00010684,2]
[351658407,1738692656620,-434.23,0.00010684,2]
[351658408,1738692656630,-500.0,0.00010684,2]
[351658409,1738692656643,-245.29,0.00010684,2]
[351658410,1738692656653,-500.0,0.00010684,2]
[351658411,1738692656663,-500.0,0.00010684,2]
[351658412,1738692656673,-500.0,0.00010684,2]
[351658413,1738692656685,-500.0,0.00010684,2]
[351658414,1738692656695,-500.0,0.00010684,2]
[351658415,1738692656706,-500.0,0.00010684,2]
[351658416,1738692656717,-1165.38,0.00010684,2]
[351658417,1738692656727,-1016.48,0.00010684,2]
[351658418,1738692656736,-310.52,0.00010684,2]
[351658419,1738692656746,-936.12,0.00010684,2]
[351658420,1738692656756,-500.0,0.00010684,2]
[351658421,1738692656765,-762.39,0.00010684,2]
[351658422,1738692656775,-514.48,0.00010684,2]
[351658423,1738692656784,-532.68,0.00010684,2]
[351658424,1738692656794,-500.0,0.00010684,2]
[351658425,1738692656803,-684.72,0.00010684,2]
[351658426,1738692656814,-500.0,0.00010684,2]
[351658427,1738692656823,-500.0,0.00010684,2]
[351658428,1738692656833,-500.0,0.00010684,2]
[351658429,1738692656842,-207.39,0.00010684,2]
[351658430,1738692656852,-154.650166,0.0001071,2]
[351658431,1738692656861,-1002.96965609,0.00010779,2]
[351658432,1738692656870,-431.43955898,0.00010781,2]
[351658433,1738692656880,-281.24405436,0.00010796,2]
[351658434,1738692656889,-150.0,0.000108,2]
[351658435,1738692656899,-150.0,0.000108,2]
[351658436,1738692656908,-635.5627001,0.00010807,2]
[351658437,1738692656918,-500.0,0.0001082,2]
[351658438,1738692656928,-500.0,0.0001082,2]
[351658439,1738692656937,-634.496518,0.0001082,2]
[351658440,1738692656947,-500.0,0.0001082,2]
[351658441,1738692656957,-563.800411,0.0001082,2]
[351658442,1738692656966,-500.0,0.0001082,2]
[351658443,1738692656976,-500.0,0.0001082,2]
[351658444,1738692656986,-437.4,0.0001082,2]
[351658445,1738692656995,-500.0,0.0001082,2]
[351658446,1738692657005,-500.0,0.0001082,2]
[351658447,1738692657015,-500.0,0.0001082,2]
[351658448,1738692657024,-575.71,0.0001082,2]
[351658449,1738692657034,-587.45,0.0001082,2]
[351658450,1738692657044,-500.0,0.0001082,2]
[351658451,1738692657053,-373.62,0.0001082,2]
[351658452,1738692657064,-500.0,0.0001082,2]
[351658453,1738692657074,-500.0,0.0001082,2]
[351658454,1738692657084,-500.0,0.0001082,2]
[351658455,1738692657093,-1116.97,0.0001082,2]
[351658456,1738692657103,-702.39,0.0001082,2]
[351658457,1738692657116,-1009.36,0.0001082,2]
[351658458,1738692657125,-1278.5,0.0001082,2]
[351658459,1738692657135,-500.0,0.0001082,2]
[351658460,1738692657143,-500.0,0.0001082,2]
[351658461,1738692657153,-500.0,0.0001082,2]
[351658462,1738692657163,-500.0,0.0001082,2]
[351658463,1738692657173,-595.35,0.0001082,2]
[351658464,1738692657182,-500.0,0.0001082,2]
[351658465,1738692657194,-500.0,0.0001082,2]
[351658466,1738692657206,-500.0,0.0001082,2]
[351658467,1738692657220,-500.0,0.0001082,2]
[351658468,1738692657236,-500.0,0.0001082,2]
[351658469,1738692657250,-500.0,0.0001082,2]
[351658470,1738692657260,-565.68,0.0001082,2]
[351658471,1738692657270,-558.34,0.0001082,2]
[351658472,1738692657280,-500.0,0.0001082,2]
[351658473,1738692657290,-500.0,0.0001082,2]
[351658474,1738692657300,-1644.19,0.0001082,2]
[351658475,1738692657310,-174.23,0.0001082,2]
[351658476,1738692657320,-500.0,0.0001082,2]
[351658477,1738692657329,-500.0,0.0001082,2]
[351658478,1738692657338,-500.0,0.0001082,2]
[351658479,1738692657348,-820.11,0.0001082,2]
[351658480,1738692657357,-777.25,0.0001082,2]
[351658481,1738692657367,-500.0,0.0001082,2]
[351658482,1738692657376,-592.33,0.0001082,2]
[351658483,1738692657386,-500.0,0.0001082,2]
[351658484,1738692657395,-500.0,0.0001082,2]
[351658485,1738692657404,-500.0,0.0001082,2]
[351658486,1738692657413,-1217.55,0.0001082,2]
[351658487,1738692657423,-500.0,0.0001082,2]
[351658488,1738692657432,-635.95,0.0001082,2]
[351658489,1738692657441,-500.0,0.0001082,2]
[351658490,1738692657452,-500.0,0.0001082,2]
[351658491,1738692657461,-500.0,0.0001082,2]
[351658492,1738692657471,-250.34750073,0.0001082,2]
[351658493,1738692657480,-1100.63,0.0001082,2]
[351658494,1738692657490,-500.0,0.0001082,2]
[351658495,1738692657500,-514.24,0.0001082,2]
[351658496,1738692657509,-500.0,0.0001082,2]
[351658497,1738692657518,-500.0,0.0001082,2]
[351658498,1738692657528,-500.0,0.0001082,2]
[351658499,1738692657537,-605.9,0.0001082,2]
[351658500,1738692657546,-500.0,0.0001082,2]
[351658501,1738692657556,-500.0,0.0001082,2]
[351658502,1738692657566,-500.0,0.0001082,2]
[351658503,1738692657576,-500.0,0.00010821,2]
[351658504,1738692657585,-569.65,0.00010821,2]
[351658505,1738692657594,-306.31,0.00010821,2]
[351658506,1738692657603,-500.0,0.00010821,2]
[351658507,1738692657613,-500.0,0.00010821,2]
[351658508,1738692657623,-500.0,0.00010821,2]
[351658509,1738692657632,-500.0,0.00010821,2]
[351658510,1738692657641,-500.0,0.00010821,2]
[351658511,1738692657651,-500.0,0.00010821,2]
[351658512,1738692657662,-480.43,0.00010821,2]
[351658513,1738692657671,-500.0,0.00010821,2]
[351658514,1738692657680,-500.0,0.00010821,2]
[351658515,1738692657690,-500.0,0.00010821,2]
[351658516,1738692657699,-500.0,0.00010821,2]
[351658517,1738692657709,-500.0,0.00010821,2]
[351658518,1738692657718,-196.36,0.00010821,2]
[351658519,1738692657728,-500.0,0.00010821,2]
[351658520,1738692657738,-500.0,0.00010821,2]
[351658521,1738692657748,-500.0,0.00010821,2]
[351658522,1738692657757,-500.0,0.00010821,2]
[351658523,1738692657766,-500.0,0.00010821,2]
[351658524,1738692657775,-604.54,0.00010821,2]
[351658525,1738692657785,-919.24,0.00010821,2]
[351658526,1738692657795,-2414.84,0.00010821,2]
[351658527,1738692657806,-500.0,0.00010821,2]
[351658528,1738692657816,-500.0,0.00010821,2]
[351658529,1738692657827,-500.0,0.00010821,2]
[351658530,1738692657837,-500.0,0.00010821,2]
[351658531,1738692657847,-500.0,0.00010821,2]
[351658532,1738692657858,-500.0,0.00010821,2]
[351658533,1738692657868,-500.0,0.00010821,2]
[351658534,1738692657879,-500.0,0.00010821,2]
[351658535,1738692657890,-1165.38,0.00010821,2]
[351658536,1738692657901,-1016.48,0.00010821,2]
[351658537,1738692657911,-936.12,0.00010821,2]
[351658538,1738692657921,-500.0,0.00010821,2]
[351658539,1738692657931,-762.39,0.00010821,2]
[351658540,1738692657942,-514.48,0.00010821,2]
[351658541,1738692657952,-532.68,0.00010821,2]
[351658542,1738692657964,-500.0,0.00010821,2]
[351658543,1738692657974,-684.72,0.00010821,2]
[351658544,1738692657985,-500.0,0.00010821,2]
[351658545,1738692657996,-500.0,0.00010821,2]
[351658546,1738692658006,-500.0,0.00010821,2]
[351658547,1738692658017,-1100.0,0.00010876,2]
[351658548,1738692658027,-2500.0,0.00010876,2]
[351658549,1738692658037,-1002.96965609,0.00010877,2]
[351658550,1738692658046,-983.34367506,0.000109,2]
[351658551,1738692658056,-983.34367506,0.000109,2]
[351658552,1738692658069,-983.34367506,0.000109,2]
[351658553,1738692658078,-983.34367506,0.000109,2]
[351658554,1738692658088,-281.24405436,0.00010946,2]
[351658555,1738692658099,-371.19915324,0.00010957,2]
[351658556,1738692658110,-500.0,0.00010957,2]
[351658557,1738692658121,-634.496518,0.00010957,2]
[351658558,1738692658131,-327.79,0.00010957,2]
[351658559,1738692658141,-563.800411,0.00010957,2]
[351658560,1738692658151,-500.0,0.00010957,2]
[351658561,1738692658161,-500.0,0.00010957,2]
[351658562,1738692658171,-500.0,0.00010957,2]
[351658563,1738692658180,-500.0,0.00010957,2]
[351658564,1738692658192,-500.0,0.00010957,2]
[351658565,1738692658202,-575.71,0.00010957,2]
[351658566,1738692658212,-587.45,0.00010957,2]
[351658567,1738692658222,-500.0,0.00010957,2]
[351658568,1738692658232,-500.0,0.00010957,2]
[351658569,1738692658241,-500.0,0.00010957,2]
[351658570,1738692658251,-500.0,0.00010957,2]